bitfinex-derivatives/quotes_SOLF0:USTF0_20241231
["timestamp","ask_amount","ask_price","bid_price","bid_amount"]
[1735615135908,2.6355,190.07,190.03,5.13529774]
[1735615136107,3.08,190.11,190.03,5.13529774]
[1735615136308,2.6356,190.06,190.02,2.636]
[1735615136809,2.6356,190.06,190.03,5.13541175]
[1735615137307,2.6356,190.06,190.02,2.636]
[1735615137806,2.6356,190.06,190.03,5.13499327]
[1735615138108,2.6356,190.06,190.02,2.636]
[1735615138406,2.6358,190.04,190.01,1.5733]
[1735615138618,12.03685698,190.1,190.02,5.13535734]
[1735615138810,0.81183827,190.09,190.02,5.13535734]
[1735615139006,0.81183827,190.09,190.0,5.6946]
[1735615139509,12.03685698,190.1,190.0,5.6946]
[1735615140306,12.03685698,190.1,190.0,3.0583]
[1735615140506,12.03685698,190.1,190.01,9.40955769]
[1735615140699,12.03685698,190.1,190.01,5.13636205]
[1735615140906,12.03685698,190.1,190.02,5.13636205]
[1735615141210,3.08,190.11,190.03,7.77236205]
[1735615141608,3.08,190.11,190.03,2.636]
[1735615142000,2.6353,190.08,190.03,2.636]
[1735615142410,3.08,190.11,190.03,2.636]
[1735615142606,3.08,190.11,190.02,2.6361]
[1735615142607,2.6355,190.07,190.02,2.6361]
[1735615142807,2.6355,190.07,190.03,5.13535597]
[1735615143008,2.6355,190.07,190.02,2.6361]
[1735615143412,3.08,190.11,190.02,2.6361]
[1735615143612,2.6358,190.05,190.0,3.0583]
[1735615143808,12.03685698,190.1,190.01,4.27348859]
[1735615144007,12.03685698,190.1,190.0,3.0583]
[1735615144509,12.03685698,190.1,190.01,5.13720542]
[1735615144713,2.6359,190.04,190.01,5.13720542]
[1735615145013,3.08,190.06,190.0,3.0583]
[1735615145213,3.08,190.05,190.0,3.0583]
[1735615146515,3.08,190.05,190.01,2.6362]
[1735615146808,3.08,190.09,190.0,3.0583]
[1735615147012,2.6354,190.08,190.03,2.6359]
[1735615147214,3.08,190.09,190.03,2.6359]
[1735615147409,2.6356,190.06,190.02,2.6361]
[1735615148421,2.6359,190.04,190.0,8.7747]
[1735615148713,15.11685698,190.1,190.0,3.0583]
[1735615149014,2.6361,190.03,190.0,3.0583]
[1735615150215,2.6361,190.02,190.0,3.0583]
[1735615150716,12.03685698,190.07,190.0,3.0583]
[1735615152207,2.6361,190.03,190.0,3.0583]
[1735615152715,12.03685698,190.07,190.0,3.0583]
[1735615153018,2.6359,190.04,190.0,3.0583]
[1735615153512,15.11685698,190.1,190.0,3.0583]
[1735615153714,3.08,190.09,190.0,3.0583]
[1735615154018,3.08,190.09,190.01,4.27278777]
[1735615154217,3.08,190.09,190.01,5.13575567]
[1735615154516,3.08,190.09,190.0,15.09515698]
[1735615154920,2.6355,190.07,190.0,15.09515698]
[1735615155417,3.08,190.09,190.01,5.13598328]
[1735615155813,3.08,190.09,190.0,15.09515698]
[1735615156417,2.6356,190.06,190.02,2.6361]
[1735615156619,3.08,190.09,190.01,5.13588614]
[1735615156919,2.6362,190.02,190.0,3.0583]
[1735615157115,12.03685698,190.07,190.0,3.0583]
[1735615158619,3.08,190.09,190.0,3.0583]
[1735615159121,2.6358,190.05,190.01,2.6362]
[1735615159821,2.6358,190.05,190.0,3.0583]
[1735615160015,3.08,190.09,190.0,3.0583]
[1735615160216,3.08,190.09,190.01,5.14054382]
[1735615160613,0.81188451,190.08,190.0,3.0583]
[1735615161422,2.636,190.03,190.0,3.0583]
[1735615162824,2.6361,190.02,190.01,5.14834038]
[1735615163225,15.11685698,190.04,189.95,23.52433999]
[1735615163426,15.11685698,190.04,189.96,29.30303712]
[1735615163616,15.11685698,190.04,189.97,9.04751482]
[1735615163819,15.11685698,190.04,189.98,4.28664258]
[1735615164124,2.6362,190.02,189.99,4.28609081]
[1735615164326,2.6362,190.02,189.99,5.15262223]
[1735615164624,2.6362,190.02,190.0,5.15262223]
[1735615165220,3.08,190.04,189.95,4.2317]
[1735615165421,15.11685698,190.04,189.96,29.33960155]
[1735615165616,15.11685698,190.04,189.97,9.05768236]
[1735615165924,2.6365,189.99,189.98,9.4513223]
[1735615166227,2.6365,189.99,189.98,14.22053385]
[1735615167125,2.6365,189.99,189.98,9.4513223]
[1735615167425,15.11685698,190.04,189.98,14.22018383]
[1735615167626,15.11685698,190.04,189.99,5.1598035]
[1735615167821,2.6366,189.99,189.95,1.5947]
[1735615168014,2.6366,189.99,189.96,4.77008124]
[1735615168215,2.6366,189.99,189.97,9.06493087]
[1735615168422,2.6366,189.99,189.98,9.45679852]
[1735615168630,2.6366,189.99,189.98,9.45644196]
[1735615168824,2.6366,189.99,189.98,14.22589008]
[1735615169623,2.6364,190.0,189.98,9.45644196]
[1735615169824,2.6364,190.0,189.99,14.22550579]
[1735615170021,3.08,190.04,189.99,14.22550579]
[1735615170218,3.08,190.04,190.0,9.06265371]
[1735615170424,2.6361,190.02,190.01,4.29454659]
[1735615170727,2.6361,190.02,190.01,9.45649548]
[1735615171927,2.6361,190.02,190.01,14.2244738]
[1735615172327,2.6361,190.02,190.01,9.45649548]
[1735615172528,2.6361,190.02,190.01,17.7137435]
[1735615172826,2.6361,190.02,190.01,14.22508248]
[1735615174226,2.6361,190.02,190.01,9.45649548]
[1735615174825,11.16251558,190.02,190.01,5.16194889]
[1735615175225,2.6369,189.97,189.95,1.5947]
[1735615175530,8.52641558,190.0,189.96,29.36214686]
[1735615175721,8.52641558,190.0,189.97,29.36214686]
[1735615175921,6.30401558,190.0,189.97,13.42383856]
[1735615176121,58.5741124,190.15,189.99,8.52641558]
[1735615176334,58.5741124,190.15,189.98,24.17811644]
[1735615176335,8.52641558,190.12,190.05,8.52641558]
[1735615176721,8.52641558,190.12,190.06,5.16301483]
[1735615176927,8.52641558,190.12,190.05,8.52641558]
[1735615177125,8.52641558,190.12,190.06,9.05574245]
[1735615177321,8.52641558,190.12,190.07,5.15648007]
[1735615177729,2.6352,190.08,190.05,8.52641558]
[1735615178026,2.6352,190.08,190.06,14.21090807]
[1735615178222,2.6354,190.07,190.06,5.15662916]
[1735615179036,3.08,190.12,190.06,9.44631295]
[1735615179236,3.08,190.12,190.06,5.15662916]
[1735615179635,3.08,190.12,190.03,2.6359]
[1735615179935,3.08,190.12,190.04,22.45986364]
[1735615180128,3.08,190.12,190.05,4.28972847]
[1735615180434,2.6352,190.08,190.05,5.15618464]
[1735615180636,1.4789,190.19,190.06,5.15618464]
[1735615180835,3.08,190.15,190.07,4.28780862]
[1735615181036,0.81158847,190.14,190.07,5.15618464]
[1735615181235,0.81158847,190.14,190.08,5.15618464]
[1735615181738,0.81158847,190.14,190.05,2.6356]
[1735615181937,3.08,190.15,190.06,22.44368318]
[1735615182133,0.81160183,190.14,190.07,4.28663739]
[1735615182332,0.81160183,190.14,190.07,5.15249094]
[1735615182638,0.81160183,190.14,190.04,4.6389]
[1735615182934,2.6353,190.08,190.05,14.20057827]
[1735615183135,3.08,190.15,190.05,5.15285517]
[1735615183429,0.81162511,190.14,190.06,9.4387985]
[1735615183645,3.08,190.15,190.07,4.28594333]
[1735615183841,3.08,190.15,190.07,5.15285517]
[1735615184040,3.08,190.15,190.08,5.15285517]
[1735615184241,3.08,190.15,190.05,2.6356]
[1735615184434,3.08,190.15,190.06,9.04258341]
[1735615184640,3.08,190.15,190.07,9.43436296]
[1735615184837,3.08,190.15,190.07,5.14991588]
[1735615185149,0.81160301,190.14,190.04,4.6389]
[1735615185446,0.81160301,190.14,190.05,22.43216751]
[1735615185649,2.6353,190.08,190.06,9.43428183]
[1735615185837,2.6353,190.08,190.06,5.14984646]
[1735615186041,2.6353,190.08,190.07,5.14984646]
[1735615187341,2.6353,190.08,190.04,4.6389]
[1735615187545,2.6353,190.08,190.05,4.28469105]
[1735615187847,2.6353,190.08,190.05,5.15014746]
[1735615188048,3.08,190.15,190.04,4.6389]
[1735615188245,0.81168886,190.14,190.05,4.28389509]
[1735615188443,0.81168886,190.14,190.04,4.6389]
[1735615188644,0.81168886,190.14,190.05,9.43200492]
[1735615188846,2.6348,190.12,190.05,5.14880279]
[1735615189043,3.08,190.15,190.06,5.14880279]
[1735615189246,0.81165999,190.14,190.06,5.14880279]
[1735615189449,2.6353,190.08,190.04,4.6389]
[1735615189645,2.6353,190.08,190.05,4.28293238]
[1735615189846,2.6353,190.08,190.04,4.6389]
[1735615190046,2.6353,190.08,190.05,4.28267244]
[1735615190246,2.6354,190.07,190.06,5.14775646]
[1735615194251,3.08,190.15,190.04,3.0817]
[1735615194252,13.31550916,190.14,190.04,3.0817]
[1735615194453,13.31550916,190.11,190.0,13.31550916]
[1735615194653,3.89171857,190.1,190.01,9.03993206]
[1735615194855,3.89171857,190.1,190.0,13.31550916]
[1735615194856,3.08,190.1,190.02,4.28314802]
[1735615195153,3.08,190.1,190.02,5.14840569]
[1735615195353,3.08,190.1,190.03,5.14840569]
[1735615195757,3.08,190.1,190.0,13.31550916]
[1735615195956,3.08,190.1,190.01,9.04029507]
[1735615196254,3.08,190.1,190.01,13.38686766]
[1735615196456,2.6359,190.04,190.02,5.14879525]
[1735615196658,3.08,190.1,190.0,13.31550916]
[1735615196857,3.08,190.1,190.01,9.04134267]
[1735615197157,2.636,190.03,189.99,1.4811]
[1735615197354,2.636,190.03,190.0,29.28368193]
[1735615197559,2.636,190.03,190.01,9.04148224]
[1735615197754,2.636,190.03,190.01,5.14922944]
[1735615198259,2.636,190.03,190.02,5.14922944]
[1735615198758,2.6364,190.0,189.98,1.5335]
[1735615199057,2.6364,190.0,189.99,22.43601437]
[1735615199260,2.6364,190.0,189.99,13.3918842]
[1735615199459,2.6368,189.97,189.94,30.82672555]
[1735615199662,2.6368,189.97,189.95,9.04949545]
[1735615199960,2.6368,189.97,189.96,5.15372377]
[1735615200457,2.6368,189.97,189.94,1.5788]
[1735615200458,2.6368,189.97,189.95,7.67754688]
[1735615201354,2.6366,189.98,189.95,7.67754688]
[1735615202059,2.6366,189.98,189.96,5.15224725]
[1735615202355,2.6366,189.98,189.95,7.67754688]
[1735615203161,10.75754688,190.04,189.97,7.67754688]
[1735615203658,2.6362,190.02,189.97,7.67754688]
[1735615203859,2.6362,190.02,189.98,5.14899517]
[1735615204256,2.6362,190.02,189.97,7.67754688]
[1735615205057,2.6362,190.02,189.98,5.14817448]
[1735615205554,2.6362,190.02,189.99,5.14817448]
[1735615205756,2.6362,190.02,189.99,12.82572136]
[1735615205954,99.38322684,190.13,190.01,7.67754688]
[1735615206159,7.67754688,190.08,190.01,7.67754688]
[1735615206761,2.6355,190.07,190.03,7.67754688]
[1735615207360,2.6353,190.08,190.03,7.67754688]
[1735615208160,2.6353,190.08,190.04,5.14688303]
[1735615208362,2.6353,190.08,190.03,10.31344688]
[1735615208658,7.67754688,190.1,190.03,7.67754688]
[1735615208659,2.6354,190.07,190.03,7.67754688]
[1735615211759,7.67754688,190.1,190.04,5.1517292]
[1735615211961,7.67754688,190.12,190.05,7.67754688]
[1735615212168,10.75754688,190.14,190.07,7.67754688]
[1735615212359,7.67754688,190.16,190.09,7.67754688]
[1735615212765,3.08,190.17,190.11,7.67754688]
[1735615212959,2.6343,190.16,190.11,7.67754688]
[1735615213668,58.5741124,190.28,190.12,5.14537132]
[1735615213871,7.67754688,190.19,190.13,12.8229182]
[1735615214266,7.67754688,190.19,190.1,4.5104]
[1735615214462,7.67754688,190.17,190.11,7.67754688]
[1735615214666,7.67754688,190.17,190.11,12.81880761]
[1735615214864,7.67754688,190.17,190.11,7.67754688]
[1735615215865,2.6345,190.14,190.1,3.005]
[1735615216067,7.67754688,190.15,190.1,3.005]
[1735615216973,7.67754688,190.17,190.1,3.005]
[1735615217268,2.6347,190.13,190.1,3.005]
[1735615218873,2.6347,190.13,190.11,7.67754688]
[1735615223270,7.67754688,190.17,190.11,7.67754688]
[1735615223468,7.67754688,190.19,190.11,7.67754688]
[1735615223872,2.6342,190.16,190.11,10.31234688]
[1735615228174,2.6342,190.16,190.13,7.67754688]
[1735615229277,2.6339,190.18,190.15,7.67754688]
[1735615229470,3.06,190.2,190.15,7.67754688]
[1735615230479,2.6337,190.19,190.15,7.67754688]
[1735615231680,7.67754688,190.25,190.17,7.67754688]
[1735615231879,10.73754688,190.25,190.19,7.67754688]
[1735615232178,4.5675,190.29,190.19,7.67754688]
[1735615232473,3.87101392,190.28,190.21,7.67754688]
[1735615232785,10.73754688,190.3,190.23,7.67754688]
[1735615232980,2.6326,190.28,190.23,7.67754688]
[1735615233279,10.73754688,190.3,190.23,7.67754688]
[1735615233780,2.6326,190.28,190.23,7.67754688]
[1735615235882,3.06,190.3,190.23,7.67754688]
[1735615236176,2.6326,190.27,190.23,7.67754688]
[1735615236580,7.67754688,190.31,190.23,7.67754688]
[1735615236883,7.67754688,190.37,190.29,7.67754688]
[1735615237085,0.81052405,190.36,190.29,7.67754688]
[1735615237478,7.67754688,190.37,190.29,7.67754688]
[1735615238176,7.67754688,190.37,190.31,7.67754688]
[1735615238972,2.6317,190.34,190.31,7.67754688]
[1735615239382,2.6317,190.34,190.29,7.67754688]
[1735615241983,2.6318,190.33,190.29,7.67754688]
[1735615245177,7.67754688,190.35,190.26,1.5532]
[1735615245478,7.67754688,190.33,190.26,9.23074688]
[1735615245984,2.6322,190.31,190.26,9.23074688]
[1735615246578,2.6322,190.3,190.26,9.23074688]
[1735615246981,7.67754688,190.33,190.26,9.23074688]
[1735615247180,2.6326,190.27,190.25,1.5509]
[1735615247383,3.04,190.32,190.25,9.22844688]
[1735615247876,7.67754688,190.41,190.31,7.67754688]
[1735615248081,7.67754688,190.41,190.34,7.67754688]
[1735615249087,2.6312,190.37,190.34,7.67754688]
[1735615249586,2.6311,190.38,190.34,7.67754688]
[1735615250888,10.71754688,190.41,190.34,7.67754688]
[1735615251586,2.631,190.39,190.34,7.67754688]
[1735615251781,2.631,190.39,190.36,7.67754688]
[1735615252288,7.67754688,190.43,190.36,7.67754688]
[1735615252488,7.67754688,190.43,190.3,14.85321163]
[1735615252683,7.67754688,190.41,190.35,7.67754688]
[1735615252884,7.67754688,190.43,190.35,7.67754688]
[1735615253587,2.631,190.39,190.35,7.67754688]
[1735615256186,2.6313,190.37,190.32,2.6318]
[1735615256380,7.67754688,190.41,190.26,32.31072555]
[1735615256685,2.6318,190.34,190.32,7.67754688]
[1735615257592,7.67754688,190.39,190.32,7.67754688]
[1735615257781,7.67754688,190.41,190.34,7.67754688]
[1735615258187,2.6313,190.37,190.34,7.67754688]
[1735615260991,2.6314,190.36,190.34,7.67754688]
[1735615261484,7.67754688,190.41,190.34,7.67754688]
[1735615261691,2.6312,190.38,190.34,7.67754688]
[1735615261887,7.67754688,190.41,190.34,7.67754688]
[1735615262495,7.67754688,190.41,190.33,2.6317]
[1735615262791,7.67754688,190.41,190.34,7.67754688]
[1735615262993,2.6314,190.37,190.34,7.67754688]
[1735615263491,2.6316,190.35,190.32,7.67754688]
[1735615263794,3.04,190.38,190.32,7.67754688]
[1735615264485,2.6316,190.35,190.32,7.67754688]
[1735615264989,2.6316,190.35,190.27,3.04]
[1735615265194,2.6316,190.35,190.32,7.67754688]
[1735615268889,2.6316,190.35,190.27,32.28792555]
[1735615268890,3.04,190.38,190.34,7.67754688]
[1735615269094,7.67754688,190.42,190.34,7.67754688]
[1735615269294,7.67754688,190.42,190.36,7.67754688]
[1735615269795,3.04,190.43,190.36,7.67754688]
[1735615270591,3.04,190.43,190.38,7.67754688]
[1735615270791,2.6308,190.41,190.38,7.67754688]
[1735615270988,3.04,190.43,190.38,7.67754688]
[1735615272089,2.6306,190.42,190.38,7.67754688]
[1735615272388,3.04,190.43,190.38,7.67754688]
[1735615272698,10.71754688,190.43,190.36,7.67754688]
[1735615273589,10.71754688,190.43,190.34,1.5674]
[1735615273789,10.71754688,190.43,190.35,7.67754688]
[1735615275500,7.67754688,190.41,190.33,9.13934688]
[1735615275694,7.67754688,190.41,190.33,7.67754688]
[1735615275894,7.67754688,190.41,190.34,5.10376767]
[1735615276294,7.67754688,190.41,190.33,7.67754688]
[1735615276498,2.6315,190.36,190.33,7.67754688]
[1735615276993,2.6315,190.36,190.34,5.10929072]
[1735615277495,2.6315,190.36,190.33,7.67754688]
[1735615277690,1.5254,190.46,190.35,7.67754688]
[1735615277893,7.67754688,190.43,190.29,8.90858556]
[1735615278095,7.67754688,190.43,190.36,5.10734297]
[1735615278299,7.67754688,190.43,190.35,7.67754688]
[1735615278997,7.67754688,190.43,190.36,5.11292087]
[1735615279195,2.6312,190.38,190.36,5.11292087]
[1735615279400,7.67754688,190.43,190.35,7.67754688]
[1735615279589,2.6305,190.43,190.37,7.67754688]
[1735615279792,10.71754688,190.45,190.37,7.67754688]
[1735615280197,2.6308,190.4,190.38,5.11447607]
[1735615280490,2.6308,190.4,190.37,7.67754688]
[1735615281396,2.6308,190.4,190.38,9.37721128]
[1735615281696,2.6308,190.4,190.39,5.11674398]
[1735615282599,2.6307,190.41,190.39,5.11674398]
[1735615282799,2.6307,190.41,190.37,7.67754688]
[1735615282995,2.6307,190.41,190.38,4.26194574]
[1735615283200,2.6307,190.41,190.37,7.67754688]
[1735615283400,2.6307,190.41,190.38,9.38381359]
[1735615283597,3.04,190.45,190.38,5.12172649]
[1735615283901,7.67754688,190.42,190.33,7.31828556]
[1735615284201,3.04,190.45,190.34,13.32243772]
[1735615284202,2.6315,190.35,190.34,13.32243772]
[1735615284604,3.04,190.37,190.33,7.31828556]
[1735615284904,3.04,190.37,190.3,95.48026443]
[1735615284905,3.04,190.37,190.3,14.99583244]
[1735615285201,7.67754688,190.36,190.31,5.12558096]
[1735615285500,7.67754688,190.36,190.3,14.99583244]
[1735615285903,7.67754688,190.36,190.3,7.67754688]
[1735615286296,2.6321,190.32,190.3,7.67754688]
[1735615286497,7.67754688,190.36,190.3,7.67754688]
[1735615286710,0.81055,190.35,190.3,7.67754688]
[1735615287006,2.6321,190.31,190.3,7.67754688]
[1735615289004,7.67754688,190.36,190.28,10.76484688]
[1735615289209,2.6322,190.3,190.28,10.76484688]
[1735615291412,2.6322,190.3,190.28,9.27494688]
[1735615295007,7.67754688,190.32,190.25,9.17804688]
[1735615295607,2.6326,190.28,190.25,9.17804688]
[1735615298921,2.6324,190.29,190.27,7.67754688]
[1735615299217,10.71754688,190.34,190.27,7.67754688]
[1735615299413,7.67754688,190.32,190.25,9.17804688]
[1735615299606,2.6326,190.27,190.25,9.17804688]
[1735615300012,10.71754688,190.34,190.25,9.17804688]
[1735615300220,2.6324,190.29,190.27,7.67754688]
[1735615300515,10.71754688,190.34,190.27,7.67754688]
[1735615301120,2.6319,190.32,190.27,7.67754688]
[1735615301317,10.71754688,190.34,190.27,7.67754688]
[1735615302122,2.6324,190.29,190.27,7.67754688]
[1735615302410,10.71754688,190.34,190.27,7.67754688]
[1735615302619,0.81068589,190.33,190.27,7.67754688]
[1735615303918,2.6325,190.29,190.27,7.67754688]
[1735615305017,2.6325,190.28,190.27,7.67754688]
[1735615305420,10.71754688,190.34,190.27,7.67754688]
[1735615305622,2.6323,190.29,190.26,7.67754688]
[1735615306116,7.0972884,190.42,190.26,7.67754688]
[1735615306421,2.6319,190.33,190.3,7.67754688]
[1735615306823,2.632,190.32,190.3,7.67754688]
[1735615307323,2.6326,190.28,190.22,4.5329]
[1735615307531,2.6326,190.28,190.23,4.25611925]
[1735615307729,2.6326,190.28,190.26,7.67754688]
[1735615310629,3.04,190.35,190.28,2.6324]
[1735615310829,3.04,190.35,190.3,7.67754688]
[1735615311035,7.67754688,190.38,190.32,7.67754688]
[1735615311329,3.1471,190.42,190.34,7.67754688]
[1735615311330,3.04,190.39,190.34,7.67754688]
[1735615312636,2.6313,190.37,190.34,7.67754688]
[1735615313034,3.04,190.39,190.34,7.67754688]
[1735615314032,2.6309,190.4,190.36,7.67754688]
[1735615314436,3.04,190.42,190.36,7.67754688]
[1735615315433,2.6312,190.38,190.36,7.67754688]
[1735615316538,3.04,190.42,190.36,7.67754688]
[1735615317839,2.6311,190.38,190.36,7.67754688]
[1735615321041,10.71754688,190.42,190.32,4.5243]
[1735615321245,7.67754688,190.38,190.32,4.5243]
[1735615321543,2.6315,190.36,190.32,4.5243]
[1735615322443,2.6316,190.35,190.32,4.5243]
[1735615323635,7.67754688,190.38,190.32,4.5243]
[1735615324442,2.6316,190.35,190.32,4.5243]
[1735615324639,7.67754688,190.38,190.32,4.5243]
[1735615324835,7.67754688,190.36,190.29,7.67754688]
[1735615325042,3.04,190.35,190.29,7.67754688]
[1735615325346,7.67754688,190.32,190.26,7.67754688]
[1735615325542,3.04,190.35,190.26,7.67754688]
[1735615325841,2.6322,190.31,190.26,2.6328]
[1735615326041,2.6322,190.31,190.28,7.67754688]
[1735615326943,2.6323,190.3,190.28,7.67754688]
[1735615328248,2.6321,190.32,190.28,7.67754688]
[1735615329450,2.6316,190.33,190.28,7.67754688]
[1735615329742,3.04,190.38,190.32,7.67754688]
[1735615329945,3.04,190.38,190.34,7.67754688]
[1735615330144,2.6311,190.37,190.34,7.67754688]
[1735615334250,2.6312,190.36,190.34,7.67754688]
[1735615338556,2.6312,190.36,190.31,2.6319]
[1735615338853,2.6312,190.36,190.33,7.67754688]
[1735615342359,2.6314,190.35,190.33,7.67754688]
[1735615342557,7.67754688,190.41,190.33,7.67754688]
[1735615342758,7.67754688,190.37,190.29,7.67754688]
[1735615342957,7.67754688,190.35,190.27,7.67754688]
[1735615344162,2.6322,190.3,190.27,7.67754688]
[1735615345360,2.6323,190.29,190.27,7.67754688]
[1735615345762,3.04,190.36,190.27,7.67754688]
[1735615346058,3.04,190.36,190.31,7.67754688]
[1735615347553,2.6317,190.33,190.31,7.67754688]
[1735615347953,3.04,190.36,190.31,7.67754688]
[1735615348160,2.6315,190.35,190.33,7.67754688]
[1735615348559,2.6318,190.32,190.31,7.67754688]
[1735615349663,3.04,190.36,190.31,7.67754688]
[1735615350564,2.6316,190.34,190.31,7.67754688]
[1735615351465,2.6313,190.36,190.33,7.67754688]
[1735615351664,3.04,190.4,190.35,7.67754688]
[1735615352465,2.631,190.38,190.35,7.67754688]
[1735615352662,7.67754688,190.43,190.37,7.67754688]
[1735615354569,2.6309,190.38,190.37,7.67754688]
[1735615355768,2.6309,190.38,190.35,7.67754688]
[1735615356175,2.6309,190.38,190.36,5.1176635]
[1735615356567,2.6309,190.38,190.35,7.67754688]
[1735615357268,2.6309,190.38,190.36,5.1162584]
[1735615357667,2.6309,190.38,190.35,7.67754688]
[1735615358369,3.04,190.42,190.32,7.67754688]
[1735615358370,7.67754688,190.39,190.32,7.67754688]
[1735615358969,7.67754688,190.39,190.33,5.11740491]
[1735615359373,3.04,190.42,190.34,7.67754688]
[1735615359374,7.67754688,190.41,190.34,7.67754688]
[1735615359571,0.81029879,190.4,190.34,7.67754688]
[1735615359872,10.71754688,190.41,190.34,7.67754688]
[1735615360374,2.6308,190.39,190.34,7.67754688]
[1735615360568,3.04,190.41,190.35,9.37207089]
[1735615360765,2.6316,190.34,190.31,7.67754688]
[1735615361174,2.6316,190.34,190.32,5.11788767]
[1735615361371,2.6316,190.34,190.31,7.67754688]
[1735615361771,2.6317,190.33,190.31,7.67754688]
[1735615362076,10.71754688,190.36,190.29,7.67754688]
[1735615362275,2.632,190.3,190.28,1.608]
[1735615362474,7.67754688,190.34,190.28,1.608]
[1735615362675,7.67754688,190.34,190.27,7.67754688]
[1735615362976,2.6317,190.33,190.28,5.12039072]
[1735615363177,7.67754688,190.34,190.28,5.12039072]
[1735615363377,7.67754688,190.34,190.27,7.67754688]
[1735615363577,2.6322,190.3,190.27,7.67754688]
[1735615363877,7.67754688,190.34,190.28,5.119917]
[1735615364177,7.67754688,190.34,190.27,7.67754688]
[1735615364471,2.6319,190.31,190.27,7.67754688]
[1735615364871,2.6319,190.31,190.28,5.12010627]
[1735615365272,2.6318,190.33,190.29,7.67754688]
[1735615365773,2.6319,190.32,190.29,7.67754688]
[1735615366175,10.71754688,190.36,190.29,7.67754688]
[1735615366374,2.6315,190.34,190.29,7.67754688]
[1735615366574,10.71754688,190.36,190.29,7.67754688]
[1735615366775,10.71754688,190.36,190.3,5.11961857]
[1735615366975,10.71754688,190.36,190.29,7.67754688]
[1735615367575,2.6317,190.33,190.3,5.1197107]
[1735615367775,2.6317,190.33,190.29,7.67754688]
[1735615368678,10.71754688,190.36,190.29,7.67754688]
[1735615368876,10.71754688,190.36,190.27,7.67754688]
[1735615369077,7.67754688,190.34,190.27,7.67754688]
[1735615369675,7.67754688,190.34,190.28,5.12047281]
[1735615369980,7.67754688,190.34,190.27,7.67754688]
[1735615369981,2.632,190.31,190.27,7.67754688]
[1735615370579,7.67754688,190.34,190.27,7.67754688]
[1735615371681,3.04,190.36,190.29,7.67754688]
[1735615371682,2.6318,190.32,190.29,7.67754688]
[1735615372279,2.6321,190.3,190.29,7.67754688]
[1735615373384,10.71754688,190.36,190.29,7.67754688]
[1735615373578,2.6319,190.32,190.29,7.67754688]
[1735615374984,3.04,190.36,190.29,7.67754688]
[1735615375384,7.67754688,190.35,190.29,7.67754688]
[1735615376583,2.6319,190.31,190.29,7.67754688]
[1735615376981,2.6317,190.33,190.29,7.67754688]
[1735615377281,2.6317,190.33,190.31,7.67754688]
[1735615378487,2.6315,190.34,190.31,7.67754688]
[1735615379090,2.6314,190.36,190.33,7.67754688]
[1735615380280,10.71754688,190.39,190.33,7.67754688]
[1735615380478,2.6314,190.35,190.33,7.67754688]
[1735615380888,2.6312,190.37,190.33,7.67754688]
[1735615381086,10.71754688,190.39,190.33,7.67754688]
[1735615381487,2.6313,190.36,190.33,7.67754688]
[1735615382778,7.67754688,190.36,190.29,1.5103]
[1735615383180,2.6318,190.32,190.3,5.11707666]
[1735615383485,7.67754688,190.36,190.3,7.67754688]
[1735615383680,7.67754688,190.38,190.32,7.67754688]
[1735615384087,7.67754688,190.38,190.33,5.11650238]
[1735615384392,2.6312,190.37,190.32,7.67754688]
[1735615384592,10.71754688,190.4,190.32,7.67754688]
[1735615384991,2.6311,190.37,190.34,7.67754688]
[1735615385492,1.5544,190.47,190.36,7.67754688]
[1735615385689,7.67754688,190.43,190.36,7.67754688]
[1735615385988,1.5544,190.47,190.38,7.67754688]
[1735615386191,11.52760638,190.46,190.38,7.67754688]
[1735615386388,3.04,190.46,190.38,7.67754688]
[1735615386589,10.71754688,190.46,190.38,7.67754688]
[1735615386793,2.6306,190.41,190.4,7.67754688]
[1735615389591,3.04,190.47,190.4,7.67754688]
[1735615389795,7.67754688,190.48,190.4,7.67754688]
[1735615389988,1.4883,190.52,190.42,7.67754688]
[1735615390189,2.63,190.46,190.44,7.67754688]
[1735615391693,2.63,190.45,190.44,7.67754688]
[1735615392291,7.67754688,190.49,190.42,7.67754688]
[1735615392497,2.6303,190.43,190.42,7.67754688]
[1735615393195,2.6301,190.45,190.42,7.67754688]
[1735615393396,2.6301,190.45,190.44,7.67754688]